bitfinex/quotes_ETHUSD_20260121
["timestamp","ask_amount","ask_price","bid_price","bid_amount"]
[1769004388108,26.950735,2950.7,2948.2,3.39188222]
[1769004388306,12.557966,2950.7,2948.2,3.39181862]
[1769004388531,12.557966,2950.7,2948.2,3.3918889]
[1769004388810,7.800948,2950.7,2948.2,3.39179497]
[1769004389250,0.56,2950.6,2948.2,3.39179497]
[1769004389546,0.56,2950.6,2948.3,0.89830459]
[1769004389734,26.950735,2950.3,2947.5,3.39268188]
[1769004389942,10.16673444,2950.8,2947.8,2.19926061]
[1769004390151,6.77759326,2950.9,2948.2,2.19926061]
[1769004390327,6.77759326,2950.9,2948.1,11.309349]
[1769004390328,3.38879663,2950.9,2948.3,2.19926061]
[1769004390528,6.77644506,2951.4,2948.7,2.19926061]
[1769004390819,6.77644506,2951.4,2948.9,2.19926061]
[1769004391248,2.17252964,2952.6,2949.0,30.0]
[1769004391454,3.38702009,2952.5,2949.4,2.19926061]
[1769004391615,8.360391,2952.4,2949.5,0.03390405]
[1769004392036,13.54875856,2952.3,2949.6,3.3902902]
[1769004392349,2.188748,2952.2,2949.7,0.03390175]
[1769004392548,3.65368,2952.1,2949.7,0.03390175]
[1769004392849,0.421368,2952.0,2949.8,0.68144822]
[1769004393051,6.77437928,2952.3,2949.9,2.23316006]
[1769004393454,12.669582,2952.2,2949.9,0.03389945]
[1769004393621,10.16156892,2952.3,2949.8,0.68144822]
[1769004393947,9.618639,2952.2,2949.8,0.68144822]
[1769004394116,10.16260161,2952.0,2949.9,3.42382249]
[1769004394521,10.16260161,2952.0,2949.9,0.03389945]
[1769004395454,6.77506774,2952.0,2949.9,3.38993724]
[1769004395652,6.77506774,2952.0,2950.0,0.0338983]
[1769004396023,3.38736485,2952.2,2950.1,3.42351731]
[1769004396225,0.39473649,2952.1,2950.2,0.34235173]
[1769004396733,0.39473649,2952.1,2950.1,0.03389715]
[1769004396959,0.39473649,2952.1,2950.1,3.38971097]
[1769004397159,0.39473649,2952.1,2950.2,0.033896]
[1769004397327,0.39473649,2952.1,2949.4,3.39048338]
[1769004397530,0.39473649,2952.1,2950.1,3.38970578]
[1769004397859,1.05567101,2952.0,2950.2,0.33897058]
[1769004398063,6.77529726,2951.9,2950.3,3.38948581]
[1769004398229,3.38764863,2951.9,2950.3,3.38948581]
[1769004398426,3.38764863,2951.9,2950.2,0.37286658]
[1769004398427,6.77529726,2951.9,2950.2,3.76245964]
[1769004399270,6.77529726,2951.9,2950.6,0.05]
[1769004399463,0.67752973,2951.8,2950.6,0.05]
[1769004399669,0.002,2952.7,2950.6,2.24926061]
[1769004399870,0.002,2952.7,2950.8,2.19926061]
[1769004400075,0.002,2952.7,2950.9,6.77759326]
[1769004400237,0.002,2952.7,2950.9,8.97685387]
[1769004401069,0.002,2952.7,2951.2,2.19926061]
[1769004401365,3.38535495,2953.9,2951.5,2.19926061]
[1769004401875,3.38489659,2954.3,2951.7,2.19926061]
[1769004402080,0.003,2954.4,2952.1,7.37688423]
[1769004402236,0.0016,2955.0,2952.9,2.19926061]
[1769004402433,0.0016,2955.0,2953.1,2.19926061]
[1769004402741,0.0016,2955.0,2953.0,0.95761448]
[1769004402937,0.0016,2955.0,2952.4,2.19926061]
[1769004403555,0.0016,2955.0,2952.6,2.19926061]
[1769004403756,0.0016,2955.0,2952.9,2.19926061]
[1769004403956,0.0016,2955.0,2953.1,2.19926061]
[1769004404148,0.0205501,2955.9,2953.6,2.19926061]
[1769004404347,0.0205501,2955.9,2954.0,2.56083091]
[1769004404575,0.0008,2956.3,2955.7,0.00080008]
[1769004405074,0.0016,2957.0,2956.0,0.00080008]
[1769004405371,0.00056525,2957.5,2956.9,0.00080008]
[1769004405677,0.00056525,2957.5,2956.0,0.00080008]
[1769004405678,6.76307709,2957.5,2956.0,0.00080008]
[1769004405839,0.67630771,2957.4,2956.0,0.00080008]
[1769004406039,13.52630864,2957.2,2955.7,0.00080008]
[1769004406251,2.753998,2957.1,2955.4,0.0008]
[1769004406446,10.14473148,2957.2,2955.4,0.0008]
[1769004407166,13.52630864,2957.2,2955.4,0.0008]
[1769004407471,1.35263086,2957.1,2955.4,0.0008]
[1769004407675,3.98673,2957.0,2955.4,0.0008]
[1769004408141,4.01219668,2956.6,2953.4,0.0008]
[1769004408340,4.025918,2956.6,2953.4,3.83987155]
[1769004408536,6.76429802,2956.7,2953.8,3.83907155]
[1769004408739,0.6764298,2956.6,2954.1,4.00056]
[1769004408951,0.6764298,2956.6,2954.2,3.83907155]
[1769004409173,6.76269696,2957.4,2954.5,2.121]
[1769004409472,6.76269696,2957.4,2954.7,13.803926]
[1769004409658,10.14404544,2957.4,2954.6,3.83907155]
[1769004410178,10.1426736,2957.8,2954.7,6.7688767]
[1769004410402,3.3808912,2957.8,2955.1,3.83907155]
[1769004410539,6.7617824,2957.8,2955.3,33.83907155]
[1769004410745,6.7617824,2957.8,2955.3,3.83907155]
[1769004411274,3.3808912,2957.8,2955.3,3.83907155]
[1769004411474,3.3808912,2957.8,2955.4,16.56519]
[1769004411841,0.14,2957.9,2955.9,3.83907155]
[1769004412048,0.14,2957.9,2957.2,0.00080008]
[1769004412281,0.19448458,2958.2,2957.2,0.00080008]
[1769004412573,0.00274039,2958.7,2957.2,0.00080008]
[1769004412875,3.38260316,2958.7,2958.1,0.00080008]
[1769004413077,0.002,2957.5,2957.2,0.00080008]
[1769004413278,0.33826032,2958.6,2957.2,0.00080008]
[1769004413454,0.33826032,2958.6,2955.6,7.37688423]
[1769004413455,0.33826032,2958.6,2955.9,3.38298801]
[1769004413653,0.33826032,2958.6,2955.7,3.96707155]
[1769004413866,0.33826032,2958.6,2956.1,3.38283549]
[1769004414061,1.04826658,2958.5,2956.2,0.33828355]
[1769004414366,1.04826658,2958.5,2956.4,30.0]
[1769004414566,0.00474039,2958.7,2956.4,2.573]
[1769004414774,0.00474039,2958.7,2956.0,3.61643605]
[1769004414775,4.218663,2958.6,2955.2,0.38390716]
[1769004414954,13.52419469,2958.7,2955.7,3.38324566]
[1769004415166,13.52419469,2958.7,2955.9,5.447831]
[1769004415347,1.35241947,2958.6,2956.0,0.54816628]
[1769004415680,1.35241947,2958.6,2955.8,0.03383178]
[1769004415849,14.670462,2958.5,2955.8,0.03383178]
[1769004416175,10.14130212,2958.2,2955.6,0.03383407]
[1769004416376,6.76086808,2958.2,2955.7,3.38320192]
[1769004416553,3.38043404,2958.2,2955.8,0.03383178]
[1769004416756,6.76086808,2958.2,2955.9,1.01836203]
[1769004416974,6.76086808,2958.2,2956.0,0.03382949]
[1769004417154,10.14130212,2958.2,2956.0,0.03382949]
[1769004417486,9.378846,2958.1,2954.7,7.2234108]
[1769004417649,3.26215,2958.1,2954.8,0.16184323]
[1769004417850,15.829273,2957.9,2954.9,0.73852831]
[1769004418051,15.829273,2957.9,2955.5,3.38350845]
[1769004418052,8.983132,2957.9,2955.5,3.38350845]
[1769004418384,10.1426736,2957.8,2955.6,3.41719374]
[1769004418702,10.1426736,2957.8,2955.6,0.03383407]
[1769004418846,13.5235648,2957.8,2954.9,0.73852831]
[1769004419050,1.35235648,2957.7,2955.0,0.44611809]
[1769004419264,1.30235648,2957.7,2955.0,0.03384094]
[1769004419475,1.30235648,2957.7,2955.6,3.38340685]
[1769004419651,1.30235648,2957.7,2955.7,0.03383293]
[1769004419854,13.659952,2957.6,2955.1,0.0338398]
[1769004420293,4.49840986,2957.3,2953.9,4.63640408]
[1769004420512,4.49840986,2957.0,2954.0,0.46364041]
[1769004420719,4.49840986,2957.0,2954.6,3.38446726]
[1769004420862,4.49840986,2956.8,2954.7,0.03384438]
[1769004421188,4.49840986,2956.8,2953.4,3.38668618]
[1769004421189,0.559,2956.9,2953.7,4.63640408]
[1769004421354,6.334563,2956.7,2953.8,0.03385469]
[1769004421556,2.079606,2956.7,2954.0,3.38520015]
[1769004421763,2.079606,2956.7,2953.4,3.38665185]
[1769004421764,7.045572,2956.5,2954.1,0.37237127]
[1769004422067,4.49840986,2956.4,2954.1,0.03385125]
[1769004422303,8.461735,2956.2,2953.4,0.03465928]
[1769004422483,12.96014486,2956.2,2953.4,0.03465928]
[1769004422685,16.91303315,2956.3,2953.4,0.0008]
[1769004422686,4.49840986,2955.7,2953.4,0.0008]
[1769004422866,4.49840986,2954.8,2951.8,3.38774835]
[1769004423067,26.950735,2954.6,2951.9,0.03387648]
[1769004423398,0.559,2954.5,2951.4,0.03388222]
[1769004423696,0.559,2954.4,2952.0,3.38751413]
[1769004423908,0.559,2954.4,2952.1,0.03387419]
[1769004424060,3.464635,2954.3,2951.4,0.03388222]
[1769004424260,10.15537725,2954.1,2951.5,7.2428362]
[1769004424468,10.15537725,2954.1,2951.6,0.03387992]
[1769004424469,6.7702515,2954.1,2951.6,0.03387992]
[1769004424814,0.00341,2953.8,2951.6,0.03387992]
[1769004425394,0.00341,2953.8,2951.7,0.03387878]
[1769004426183,0.00341,2953.8,2951.8,6.77552678]
[1769004426389,0.00341,2953.8,2951.9,1.05359385]
[1769004427306,0.00341,2953.8,2951.5,0.001]
[1769004427829,0.00341,2953.8,2951.5,3.38909348]
[1769004427976,0.00341,2953.8,2951.5,0.03488107]
[1769004428176,0.00341,2953.8,2951.6,0.03387992]
[1769004428484,0.00341,2953.8,2951.7,3.38787817]
[1769004428683,0.00341,2953.8,2951.8,0.37605344]
[1769004429399,3.38352224,2955.5,2952.3,4.63640408]
[1769004429594,3.38352224,2955.5,2952.9,4.63640408]
[1769004429776,26.950735,2956.0,2953.0,0.03386386]
[1769004429977,26.782735,2956.0,2953.0,0.03386386]
[1769004430171,3.3548406,2955.9,2954.4,0.168]
[1769004430421,26.782735,2956.1,2954.4,0.168]
[1769004430595,8.59651,2956.1,2953.3,0.03386042]
[1769004430794,10.14820714,2956.2,2954.1,3.38512374]
[1769004430997,10.14820714,2956.2,2953.1,0.46702679]
[1769004430998,17.442836,2955.9,2954.3,0.168]
[1769004431321,10.324836,2956.1,2954.3,0.168]
[1769004431614,7.732528,2955.9,2954.4,0.168]
[1769004431814,7.732528,2955.9,2954.3,0.168]
[1769004432176,0.56,2955.8,2954.3,0.168]
[1769004432406,10.14953649,2955.8,2954.4,0.168]
[1769004432723,0.56,2955.7,2954.2,0.168]
[1769004432939,1.07095365,2955.6,2954.2,0.168]
[1769004433521,1.07095365,2955.6,2955.0,0.168]
[1769004433827,3.38317883,2955.8,2955.0,0.168]
[1769004433828,6.76635766,2955.8,2955.0,0.13907269]
[1769004434034,6.76635766,2955.8,2954.5,0.09113883]
[1769004434238,8.971776,2955.7,2954.0,0.09113883]
[1769004434403,3.38340776,2955.6,2954.5,0.09113883]
[1769004434596,3.38340776,2955.6,2953.1,3.85321443]
[1769004434597,6.76681552,2955.6,2954.1,0.09113883]
[1769004434828,0.67668155,2955.5,2954.1,0.09113883]
[1769004435599,26.782735,2955.4,2953.7,0.09113883]
[1769004435801,25.55195,2955.4,2953.7,0.09113883]
[1769004436029,20.039963,2955.4,2953.6,0.09113883]
[1769004436411,2.611,2955.2,2953.4,0.09113883]
[1769004436735,14.09500488,2955.3,2953.4,0.09113883]
[1769004436736,17.594977,2955.0,2953.4,0.09113883]
[1769004436935,20.52507,2954.9,2953.0,0.09113883]
[1769004437127,7.343818,2954.9,2953.0,0.09113883]
[1769004437301,26.782735,2954.8,2952.9,0.09113883]
[1769004437501,6.611,2954.8,2953.0,0.09113883]
[1769004437733,2.192,2954.6,2953.0,0.09113883]
[1769004438135,2.192,2954.6,2952.2,3.42195431]
[1769004438136,2.192,2954.6,2952.9,0.09113883]
[1769004438327,26.782735,2954.4,2952.8,0.09113883]
[1769004438515,10.15400235,2954.5,2952.8,0.09113883]
[1769004438841,8.880183,2954.4,2952.8,0.09113883]
[1769004439008,2.24188528,2954.3,2952.8,0.09113883]
[1769004439204,10.15400235,2954.5,2952.8,0.09113883]
[1769004439399,4.201351,2954.4,2952.9,0.09113883]
[1769004439631,0.56,2954.4,2952.9,0.09113883]
[1769004439835,0.56,2954.4,2952.2,0.0008]
[1769004439836,24.672381,2954.0,2952.2,0.0008]
[1769004440032,7.37096009,2954.1,2952.2,0.0008]
[1769004440033,7.497821,2953.8,2952.2,0.0008]
[1769004440232,13.666774,2954.0,2952.2,0.0008]
[1769004440426,7.37096009,2954.1,2952.2,0.0008]
[1769004440427,10.1570964,2953.6,2952.2,0.0008]
[1769004440939,13.5427952,2953.6,2952.2,0.0008]
[1769004441301,6.7713976,2953.6,2952.2,0.0008]
[1769004441507,4.06283856,2953.6,2952.4,0.091139]
[1769004441805,0.67713976,2953.6,2952.4,0.091139]
[1769004442026,3.945604,2953.7,2952.4,0.091139]
[1769004442241,10.716812,2953.7,2952.4,0.091139]
[1769004442419,10.71675254,2953.7,2952.2,0.0008]
[1769004442606,26.782735,2953.6,2952.2,0.0008]
[1769004442810,26.782735,2953.6,2951.9,0.0008]
[1769004443038,3.39115248,2953.5,2951.9,0.0008]
[1769004443340,19.07919662,2953.7,2951.9,0.091939]
[1769004443541,4.97684008,2953.5,2951.9,0.0008]
[1769004443708,15.813531,2953.4,2951.9,0.0008]
[1769004443906,15.813531,2953.4,2951.7,0.0008]
[1769004444245,26.782735,2953.2,2951.5,0.001]
[1769004444446,6.77277344,2953.0,2951.5,0.001]
[1769004444659,0.56,2952.9,2951.5,0.001]
[1769004446305,6.77323218,2952.8,2951.5,0.001]
[1769004446540,3.94661609,2952.8,2951.5,0.001]
[1769004446713,10.71984827,2952.8,2951.5,0.001]
[1769004446911,10.71984827,2952.8,2951.4,0.0008]
[1769004446912,1.07198483,2952.7,2951.4,0.0008]
[1769004447150,1.07198483,2952.7,2950.6,0.05]
[1769004447321,15.241359,2952.6,2950.6,0.05]
[1769004447865,3.060798,2952.6,2950.6,0.05]
[1769004448068,26.782735,2952.4,2950.6,0.05]
[1769004448256,3.17595751,2952.3,2950.6,0.05]
[1769004448444,21.47553408,2952.3,2950.6,0.05]
[1769004448649,26.782735,2952.2,2950.6,0.05]
[1769004448835,4.97684008,2952.3,2950.6,0.05]
[1769004449029,0.56,2952.2,2950.6,0.05]
[1769004449472,16.505887,2952.1,2950.6,0.05]
[1769004449785,31.75957508,2951.9,2948.9,5.73316709]
[1769004450077,1.7065887,2952.0,2948.9,5.73316709]
[1769004450078,4.97684008,2951.7,2949.0,0.03390979]
[1769004450277,3.736,2951.6,2949.0,5.20707688]
[1769004450486,0.56,2951.7,2949.2,5.17316709]
[1769004450687,0.56,2951.7,2949.3,0.03390635]
[1769004450835,2.22,2951.6,2949.4,0.52070734]
[1769004451040,10.16294589,2951.9,2949.5,0.03390405]
[1769004451256,22.156955,2951.7,2949.5,0.03390405]
[1769004451435,4.687904,2951.7,2949.5,0.03390405]
[1769004451662,4.687904,2951.7,2949.4,0.55461254]
[1769004451839,25.317834,2951.5,2949.4,0.55461254]
[1769004452039,0.5247904,2951.6,2949.5,0.03390405]
[1769004452290,3.117,2951.5,2949.1,0.03390865]
[1769004452470,0.5247904,2951.6,2949.1,0.03390865]
[1769004452471,6.77667468,2951.3,2949.1,0.03390865]
[1769004452639,7.33667468,2951.3,2949.1,6.78169255]
[1769004452835,26.782735,2951.2,2949.2,0.0339075]
[1769004453061,3.736,2951.0,2948.6,0.0339144]
[1769004453256,3.39115248,2951.1,2949.1,11.95486066]
[1769004453474,6.77667468,2951.3,2949.1,8.56399566]
[1769004453788,6.77667468,2951.3,2949.2,0.0339075]
[1769004454453,6.77644506,2951.4,2949.3,3.39063506]
[1769004454786,3.38822253,2951.4,2949.4,0.0339052]
[1769004454971,0.5247904,2951.6,2949.4,5.20707229]
[1769004455170,0.56,2952.2,2949.6,5.17316709]
[1769004455372,6.77437928,2952.3,2949.7,0.03390175]
[1769004455569,4.101627,2952.2,2949.7,0.03390175]
[1769004455779,2.921705,2952.2,2949.7,0.03390175]
[1769004456492,10.16225736,2952.1,2949.8,3.39006034]
[1769004456690,3.94718964,2952.3,2949.9,5.88847722]
[1769004456691,1.66529624,2952.0,2949.9,5.88847722]
[1769004456875,5.94361609,2952.8,2949.9,5.88847722]
[1769004457052,3.38638672,2953.0,2950.3,5.17316709]
[1769004457357,3.38638672,2953.0,2950.1,1.61075553]
[1769004457358,3.38613388,2953.3,2950.5,5.17316709]
[1769004457546,6.77226776,2953.3,2950.7,5.17316709]
[1769004457748,5.65426686,2953.2,2950.8,0.55459496]
[1769004457997,4.97684008,2952.5,2950.2,0.033896]
[1769004458146,4.97684008,2952.5,2950.0,0.0338983]
[1769004458581,10.16156892,2952.3,2950.1,3.3897156]
[1769004458784,6.77437928,2952.3,2950.1,6.7794312]
[1769004459084,0.67743793,2952.2,2950.2,0.68133295]
[1769004459769,0.67743793,2952.2,2950.2,0.71522895]
[1769004459971,3.38638672,2953.0,2950.3,5.17316709]
[1769004460173,10.948985,2952.9,2950.4,5.20706079]
[1769004460582,26.782735,2952.6,2950.3,3.38948581]
[1769004460784,10.16019234,2952.7,2950.4,0.0338937]
[1769004460785,6.77346156,2952.7,2950.4,0.0338937]
[1769004460985,2.557,2952.6,2950.4,0.0338937]
[1769004461290,1.32771923,2952.5,2950.5,0.34233795]
[1769004461885,2.79074,2952.4,2950.5,0.34233795]
[1769004462190,2.79074,2952.4,2950.1,3.389648]
[1769004462356,2.79074,2952.4,2950.2,3.38949393]
[1769004462555,11.934145,2952.2,2950.2,3.38949393]
[1769004463388,4.0,2952.2,2950.1,3.39068185]
[1769004463761,4.0,2952.2,2950.1,0.001]
[1769004463967,1.41615689,2952.1,2950.1,0.001]
[1769004464236,1.41615689,2952.1,2950.1,3.39068543]
[1769004464363,1.41615689,2952.1,2950.2,0.033896]
[1769004464691,6.77437928,2952.3,2950.3,3.38948581]
[1769004465007,6.77437928,2952.3,2950.1,0.001]
[1769004465008,4.97684008,2951.9,2950.1,0.001]
[1769004465167,12.491668,2951.8,2950.1,0.001]
[1769004465367,11.809668,2951.8,2950.1,0.001]
[1769004465589,1.67865081,2951.7,2950.1,0.001]
[1769004465787,4.97684008,2951.9,2950.1,0.001]
[1769004465788,15.658668,2951.8,2950.1,0.001]
[1769004466299,5.88334909,2951.7,2950.1,0.001]
[1769004466469,5.88334909,2951.7,2948.1,3.39191894]
[1769004466470,5.88334909,2951.3,2948.5,5.54077201]
[1769004466670,26.782735,2951.0,2948.7,3.39127325]
[1769004466889,32.66608409,2951.0,2948.6,3.39140526]
[1769004467191,21.010946,2950.8,2948.7,1.23236948]
[1769004467392,12.69866,2950.8,2948.7,1.23236948]
[1769004467894,18.58200909,2950.8,2948.7,1.23236948]
[1769004468095,26.782735,2950.7,2948.0,0.0339213]
[1769004468295,5.88334909,2950.7,2948.0,0.0339213]
[1769004468793,3.67548186,2950.6,2948.2,5.54077201]
[1769004468993,6.77828238,2950.6,2948.4,5.54077201]
[1769004469164,10.16742357,2950.6,2948.2,0.033919]
[1769004469369,1.89141259,2950.5,2948.3,0.68179296]
[1769004469620,5.88334909,2950.4,2948.3,0.68179296]
[1769004470112,1.60507727,2950.5,2948.3,0.71571081]
[1769004470267,0.28640529,2950.4,2948.3,0.68179296]
[1769004470473,1.60507727,2950.5,2948.3,0.68179296]
[1769004470694,3.38948581,2950.3,2948.5,3.39155502]
[1769004470994,1.46362469,2950.4,2948.4,0.6256484]
[1769004470995,6.77883642,2950.4,2948.6,0.0339144]
[1769004471498,3.50121405,2950.3,2948.2,5.54077201]
[1769004471699,1.02800505,2950.2,2948.5,5.54077201]
[1769004471999,3.643653,2950.8,2948.6,0.0339144]
[1769004472198,0.28637093,2950.7,2948.6,5.57468641]
[1769004472493,7.90464209,2951.4,2948.6,5.57468641]
[1769004472697,16.59001,2951.1,2948.7,6.78264998]
[1769004472873,6.7769043,2951.2,2948.8,5.5746841]
[1769004473077,1.5525198,2951.1,2948.9,6.59670347]
[1769004473266,1.26602534,2951.1,2949.0,0.03390979]
[1769004473462,0.28659084,2951.0,2949.0,0.03390979]
[1769004473667,6.986322,2951.0,2948.9,1.05593146]
[1769004473869,16.444048,2950.8,2948.7,6.78264998]
[1769004474068,0.28660283,2950.7,2948.7,6.78264998]
[1769004474302,5.88334909,2951.0,2948.8,0.03391209]
[1769004474475,1.26602534,2951.1,2948.8,5.5746841]
[1769004474677,3.38824786,2951.4,2948.9,12.32296197]
[1769004474899,8.68482,2951.2,2949.0,0.03390979]
[1769004475071,0.28663015,2951.1,2949.1,0.03390865]
[1769004475270,10.16432322,2951.5,2949.1,0.03390865]
[1769004475271,9.384073,2951.4,2949.1,0.03390865]
[1769004475582,0.28672556,2951.3,2949.1,0.03390865]
[1769004475781,0.28672556,2951.2,2949.1,1.23568706]
[1769004476178,0.28672556,2951.2,2949.2,0.0339075]
[1769004476894,3.39056697,2951.1,2949.3,6.78127012]
[1769004477205,3.39056697,2951.1,2949.3,3.39063506]
[1769004477403,0.28684294,2951.0,2949.3,3.39063506]
[1769004477611,0.36774099,2950.9,2949.4,0.33906351]
[1769004477906,0.28685309,2950.8,2948.9,0.03391094]
[1769004478208,0.36774099,2950.9,2949.2,3.39075003]
[1769004478701,0.36774099,2950.9,2949.2,6.78150006]
[1769004479002,3.38891148,2950.8,2948.9,6.78218996]
[1769004479174,0.37566525,2950.7,2949.0,0.03390979]
[1769004480398,0.37566525,2950.7,2948.9,6.78218996]
[1769004480601,0.37566525,2950.7,2948.8,9.23990214]
[1769004480882,0.37566525,2950.7,2949.1,5.84772838]
[1769004481093,6.7793571,2951.1,2949.2,5.88163588]
[1769004481290,3.39067855,2951.1,2949.2,5.88163588]
[1769004481581,6.7793571,2951.1,2949.2,5.88163588]
[1769004481781,0.28681828,2951.0,2949.2,5.84772838]
[1769004481977,1.04548539,2950.9,2949.2,6.77159922]
[1769004482277,1.04548539,2950.9,2949.2,0.92387084]
[1769004482887,3.67784966,2950.8,2949.2,0.92387084]
[1769004483208,6.77782296,2950.8,2949.0,3.39091287]
[1769004483507,10.16673444,2950.8,2948.8,0.001]
[1769004483802,0.2889625,2950.7,2948.8,0.001]
[1769004484025,0.2889625,2950.6,2948.8,3.39214456]
[1769004484225,1.04556969,2950.6,2948.8,0.001]
[1769004484427,0.28892744,2950.5,2948.8,0.001]
[1769004484705,0.28894107,2950.4,2948.8,0.001]
[1769004485005,1.04556969,2950.6,2948.8,0.001]
[1769004485212,7.06745324,2950.5,2948.8,0.001]
[1769004485410,0.81130229,2950.4,2948.8,5.84872838]
[1769004485615,4.43481894,2950.6,2948.8,5.88264047]
[1769004485616,6.7784985,2950.6,2948.8,5.88264047]
[1769004486309,3.38891148,2950.8,2948.8,5.88264047]
[1769004486509,3.39061482,2951.1,2948.8,5.88264047]
[1769004486710,0.33906148,2951.0,2949.0,5.84772838]
[1769004486918,0.33906148,2951.0,2949.1,0.03390865]
[1769004487085,3.38879663,2950.9,2949.2,0.0339075]
[1769004487293,0.002,2951.1,2949.2,5.84772838]
[1769004487514,0.002,2951.1,2949.4,5.84772838]
[1769004487718,0.002,2951.1,2949.6,5.84772838]
[1769004487879,0.002,2951.1,2949.7,0.03390175]
[1769004488402,3.39060346,2951.1,2949.5,0.58816347]
[1769004488589,6.77920692,2951.1,2949.1,12.62945838]
[1769004488780,10.16781038,2951.1,2949.1,5.84772838]
[1769004489126,5.97134629,2950.8,2948.8,0.001]
[1769004489291,6.26051629,2950.7,2948.8,0.001]
[1769004489483,5.97134629,2950.5,2948.8,0.001]
[1769004489683,3.569,2950.7,2948.8,0.001]
[1769004489684,6.88656792,2950.4,2948.8,0.001]
[1769004489882,0.28917,2950.3,2948.8,0.001]
[1769004490087,9.82951629,2950.3,2948.8,0.001]
[1769004490315,18.688645,2949.8,2947.5,3.42563089]
[1769004490598,6.59739792,2950.4,2947.7,5.84772838]
[1769004490786,0.95070604,2950.3,2948.6,3.39140003]
[1769004490980,0.29096625,2950.2,2948.1,0.03392015]
[1769004491183,14.272218,2950.0,2947.8,0.58477284]
[1769004491384,0.29096625,2949.9,2948.1,6.78401936]
[1769004491617,3.3897156,2950.1,2948.2,0.033919]
[1769004491793,0.29102694,2950.0,2948.1,3.39200417]
[1769004491994,0.29102694,2949.9,2948.1,3.42592432]
[1769004492201,0.29102694,2949.8,2948.1,3.42592432]
[1769004492383,6.7794312,2950.1,2948.2,0.34259243]
[1769004492588,0.29108211,2950.0,2948.3,0.03391785]
[1769004492784,0.29108211,2949.9,2948.3,0.03391785]
[1769004493051,6.7794312,2950.1,2948.3,0.03391785]
[1769004493330,0.2910804,2950.0,2948.4,3.39167005]
[1769004493488,0.2910804,2949.9,2948.5,0.34255879]
[1769004494335,0.70702818,2950.0,2948.5,0.34255879]
[1769004494542,7.43879211,2950.3,2948.5,0.34255879]
[1769004494717,0.29127287,2950.2,2948.5,0.34255879]
[1769004495038,0.29127287,2950.1,2948.5,0.34255879]
[1769004495237,0.29127287,2950.0,2948.6,3.39144]
[1769004495423,3.38976829,2950.1,2948.5,3.73407963]
[1769004495636,0.96925369,2950.0,2948.6,0.71256599]
[1769004495822,0.67793978,2950.0,2948.6,0.71256599]
[1769004497330,0.67793978,2950.0,2948.7,0.03391324]
[1769004497530,3.3898429,2950.0,2948.3,3.39178509]
[1769004497750,3.3898429,2950.0,2948.3,3.42570294]
[1769004497963,3.3898429,2950.0,2948.3,3.39178509]
[1769004498536,16.01639619,2950.6,2948.3,6.78357018]
[1769004498717,5.983355,2950.4,2948.4,0.0339167]
[1769004498917,0.92074693,2950.3,2948.5,0.68174869]
[1769004499105,0.2931013,2950.2,2948.5,0.68174869]
[1769004499307,3.68286734,2950.1,2948.5,7.46484942]
[1769004499503,0.2931013,2950.0,2948.5,4.0732944]
[1769004499740,0.002,2950.8,2948.6,6.06560525]
[1769004499940,0.002,2950.8,2948.8,6.06560525]
[1769004500126,0.2930489,2950.7,2948.9,0.60995185]
[1769004500326,0.2930489,2950.6,2948.9,0.60995185]
[1769004500635,3.39096499,2950.8,2949.0,0.03390979]
[1769004501334,0.002,2950.8,2949.2,6.06560525]
[1769004501540,0.002,2950.8,2949.3,7.09956841]
[1769004501744,0.002,2951.0,2949.4,6.06560525]
[1769004501917,0.002,2951.0,2949.3,1.00005681]
[1769004501918,0.002,2951.3,2949.7,6.06560525]
[1769004502465,6.7767291,2952.2,2949.5,6.42717555]
[1769004502619,0.29277017,2952.1,2949.5,6.19360525]
[1769004502821,6.7767291,2952.2,2949.7,6.06560525]
[1769004502822,0.9997201,2952.0,2949.7,6.06560525]
[1769004503129,0.9997201,2952.0,2949.6,0.60995185]
[1769004503130,5.84897262,2951.7,2949.6,0.60995185]
[1769004503334,2.14373,2951.4,2949.3,6.78127012]
[1769004503515,0.29415713,2951.3,2949.3,6.78127012]
[1769004503710,0.29415713,2951.2,2949.3,6.78127012]
[1769004504028,0.002,2950.8,2949.3,0.001]
[1769004504211,10.34507,2950.6,2949.5,0.7]
[1769004504411,1.94296125,2950.5,2949.3,0.001]
[1769004504606,0.29414272,2950.4,2949.3,0.001]
[1769004504856,8.410069,2950.6,2949.3,0.001]
[1769004505058,0.29416833,2950.5,2949.3,0.001]
[1769004505227,0.002,2950.8,2949.3,0.001]
[1769004505417,5.84897262,2950.6,2949.3,0.001]
[1769004505614,5.84897262,2950.4,2948.4,3.39160821]
[1769004505815,0.2941952,2950.3,2948.5,3.39153418]
[1769004506012,0.2941952,2950.3,2948.2,6.06560525]
[1769004506370,0.2941952,2950.2,2948.4,3.39157041]
[1769004506569,0.002,2950.8,2948.8,3.39120998]
[1769004506851,5.84897262,2950.6,2948.9,0.94568152]
[1769004507015,0.2941595,2950.5,2948.9,0.97959246]
[1769004507352,6.77897162,2950.3,2948.9,0.94568152]
[1769004507519,3.38948581,2950.3,2948.3,0.03391785]
[1769004507719,3.38948581,2950.3,2948.9,3.39106721]
[1769004507929,3.38925605,2950.5,2949.0,0.03390979]
[1769004508143,6.7785121,2950.5,2948.2,6.06560525]
[1769004508342,0.29416917,2950.4,2948.6,3.3914337]
[1769004508528,1.00146275,2950.3,2948.7,0.33914337]
[1769004508730,0.70726813,2950.3,2948.5,0.03391555]
[1769004509329,0.70726813,2950.3,2948.6,3.39144]
[1769004509330,3.3896007,2950.2,2948.6,3.39144]
[1769004509536,7.48634737,2950.3,2948.6,3.39144]
[1769004510250,0.70726813,2950.3,2948.6,6.78288]
[1769004510561,6.7785121,2950.5,2948.7,0.03391324]
[1769004510754,0.29422521,2950.4,2948.8,0.03391209]
[1769004510955,3.38919413,2950.6,2948.8,0.03391209]
[1769004511150,0.29422394,2950.5,2948.6,3.39144]
[1769004511328,3.38948581,2950.3,2948.4,3.39167005]
[1769004511540,0.70731132,2950.2,2948.5,0.37647434]
[1769004511849,0.70731132,2950.2,2948.5,0.34255879]
[1769004512048,0.29425879,2950.1,2948.5,0.34255879]
[1769004512251,0.70731132,2950.2,2948.6,0.0339144]
[1769004512671,0.70731132,2950.2,2948.5,0.34255879]
[1769004512952,1.04289916,2950.1,2948.3,3.39176313]
[1769004513137,0.29427087,2950.0,2948.3,3.39174135]
[1769004513329,0.29427087,2950.0,2948.5,3.39155502]
[1769004513563,7.5282166,2950.1,2947.9,6.06560525]